[Event "ISR-ch Open 2018"]
[Site "Ma'alot-Tarshih"]
[Date "2018.12.18"]
[Round "7"]
[White "Steinberg, Nitzan"]
[Black "Mikhalevski, Victor"]
[Result "1/2-1/2"]
[ECO "C60"]
[WhiteElo "2532"]
[BlackElo "2579"]
[Annotator "ChessBase"]
[PlyCount "42"]
[EventDate "2018.12.11"]
[EventType "swiss"]
[EventCountry "ISR"]
[SourceTitle "playchess.com"]
[Source "ChessBase"]
[SourceQuality "1"]
[TimeControl "40/5400+30:1800+30"]

1. e4 {[%emt 0:00:00]} e5 {[%emt 0:04:02]} 2. Nf3 {[%emt 0:00:00]} Nc6 {[%emt 0:00:06]} 3. Bb5 {[%emt 0:00:00]} g6 {[%emt 0:00:10]} 4. c3 {[%emt 0:00:53]} Bg7 {[%emt 0:00:14]} 5. d4 {[%emt 0:01:06]} exd4 {[%emt 0:00:07]} 6. cxd4 {[%emt 0:00:05]} a6 {[%emt 0:00:04]} 7. Bxc6 {[%emt 0:03:04]} dxc6 {[%emt 0:00:22]} 8. Nc3 {[%emt 0:00:33]} Nf6 {[%emt 0:11:23]} 9. O-O {[%emt 0:07:14]} h6 {[%emt 0:09:28]} 10. h3 {[%emt 0:09:36]} O-O {[%emt 0:00:22]} 11. Re1 {[%emt 0:01:44]} b6 {[%emt 0:29:42]} 12. Bf4 {[%emt 0:16:53]} Bb7 {[%emt 0:00:29]} 13. Qd2 {[%emt 0:02:36]} Kh7 {[%emt 0:00:44]} 14. Rad1 {[%emt 0:02:46]} Qe7 {[%emt 0:09:13]} 15. Be5 {[%emt 0:05:04]} Rae8 {[%emt 0:07:59]} 16. d5 {[%emt 0:10:35]} cxd5 {[%emt 0:03:10]} 17. exd5 {[%emt 0:00:35]} Qd8 {[%emt 0:00:42]} 18. Qd4 {[%emt 0:02:53]} Nh5 {[%emt 0:04:03]} 19. Bxg7 {[%emt 0:04:43]} Rxe1+ {[%emt 0:01:35]} 20. Rxe1 {[%emt 0:00:53]} Nxg7 {[%emt 0:00:05]} 21. g4 {[%emt 0:03:37]} c6 {[%emt 0:05:20]} 1/2-1/2

[Event "ISR-ch Open 2018"]
[Site "Ma'alot-Tarshih"]
[Date "2018.12.18"]
[Round "7"]
[White "Dvoirys, Semen I."]
[Black "Galburd, Yan"]
[Result "1-0"]
[ECO "C42"]
[WhiteElo "2528"]
[BlackElo "2382"]
[Annotator "ChessBase"]
[PlyCount "69"]
[EventDate "2018.12.11"]
[EventType "swiss"]
[EventCountry "ISR"]
[SourceTitle "playchess.com"]
[Source "ChessBase"]
[SourceQuality "1"]
[TimeControl "40/5400+30:1800+30"]

1. e4 {[%emt 1:30:30]} e5 {[%emt 0:04:28]} 2. Nf3 {[%emt 0:00:00]} Nf6 {[%emt 0:00:28]} 3. Nxe5 {[%emt 0:00:00]} d6 {[%emt 0:00:08]} 4. Nf3 {[%emt 0:00:00]} Nxe4 {[%emt 0:00:07]} 5. d4 {[%emt 0:00:00]} d5 {[%emt 0:00:17]} 6. Bd3 {[%emt 0:00:00]} Bf5 {[%emt 0:00:11]} 7. O-O {[%emt 0:00:00]} Be7 {[%emt 0:00:23]} 8. Re1 {[%emt 0:00:00]} O-O {[%emt 0:01:31]} 9. Nbd2 {[%emt 0:00:00]} Nd6 {[%emt 0:02:07]} 10. Nf1 {[%emt 0:00:00]} Nd7 {[%emt 0:18:07]} 11. Ng3 {[%emt 0:00:00]} Bxd3 {[%emt 0:09:02]} 12. Qxd3 {[%emt 0:00:00]} Nf6 {[%emt 0:00:18]} 13. Bf4 {[%emt 0:00:00]} g6 {[%emt 0:03:00]} 14. Re2 {[%emt 0:00:00]} Nde4 {[%emt 0:02:51]} 15. Qb3 {[%emt 0:00:00]} Bd6 {[%emt 0:09:32]} 16. Be5 {[%emt 0:00:00]} Bxe5 {[%emt 0:16:09]} 17. dxe5 {[%emt 0:00:00]} Nc5 {[%emt 0:00:03]} 18. Qe3 {[%emt 0:00:00]} Nfd7 {[%emt 0:00:35]} 19. Rd1 {[%emt 0:00:00]} c6 {[%emt 0:00:41]} 20. c4 {[%emt 0:00:00]} Qa5 {[%emt 0:08:43]} 21. cxd5 {[%emt 0:00:00]} cxd5 {[%emt 0:00:07]} 22. Rxd5 {[%emt 0:00:00]} Qxa2 {[%emt 0:00:11]} 23. Red2 {[%emt 0:00:00]} Nb6 {[%emt 0:02:31]} 24. Rxc5 {[%emt 0:00:00]} Nc4 {[%emt 0:00:02]} 25. Rxc4 {[%emt 0:00:00]} Qxc4 {[%emt 0:00:02]} 26. Rd4 {[%emt 0:00:00]} Qc7 {[%emt 0:02:39]} 27. h4 {[%emt 0:00:00]} Rac8 {[%emt 0:00:40]} 28. Rd1 {[%emt 0:00:00]} Qc2 {[%emt 0:03:14]} 29. Re1 {[%emt 0:00:00]} f6 {[%emt 0:02:06]} 30. exf6 {[%emt 0:00:00]} Rxf6 {[%emt 0:00:03]} 31. Ne4 {[%emt 0:00:00]} Rb6 {[%emt 0:02:45]} 32. Qd4 {[%emt 0:00:00]} Rf8 {[%emt 0:02:05]} 33. Neg5 {[%emt 0:00:00]} h6 {[%emt 0:03:36]} 34. Re7 {[%emt 0:00:00]} Qd1+ {[%emt 0:02:00]} 35. Qxd1 {[%emt 0:00:00]} 1-0

[Event "ISR-ch Open 2018"]
[Site "Ma'alot-Tarshih"]
[Date "2018.12.18"]
[Round "7"]
[White "Greenfeld, Alon"]
[Black "Bakalchuk, Johnatan"]
[Result "1-0"]
[ECO "E68"]
[WhiteElo "2504"]
[BlackElo "2442"]
[Annotator "ChessBase"]
[PlyCount "65"]
[EventDate "2018.12.11"]
[EventType "swiss"]
[EventCountry "ISR"]
[SourceTitle "playchess.com"]
[Source "ChessBase"]
[SourceQuality "1"]
[TimeControl "40/5400+30:1800+30"]

1. d4 {[%emt 0:07:51]} Nf6 {[%emt 0:00:00]} 2. c4 {[%emt 0:00:40]} g6 {[%emt 0:00:00]} 3. g3 {[%emt 0:00:37]} Bg7 {[%emt 0:00:00]} 4. Bg2 {[%emt 0:00:21]} O-O {[%emt 0:00:20]} 5. Nc3 {[%emt 0:00:39]} d6 {[%emt 0:00:13]} 6. Nf3 {[%emt 0:00:28]} Nbd7 {[%emt 0:00:52]} 7. O-O {[%emt 0:05:28]} e5 {[%emt 0:00:17]} 8. e4 {[%emt 0:01:55]} exd4 {[%emt 0:00:20]} 9. Nxd4 {[%emt 0:00:07]} Re8 {[%emt 0:00:14]} 10. h3 {[%emt 0:01:15]} Nc5 {[%emt 0:00:20]} 11. Re1 {[%emt 0:00:08]} Bd7 {[%emt 0:00:09]} 12. Rb1 {[%emt 0:03:19]} a5 {[%emt 0:00:27]} 13. Ndb5 {[%emt 0:02:06]} Bc6 {[%emt 0:06:30]} 14. Qc2 {[%emt 0:01:15]} Nfd7 {[%emt 0:11:02]} 15. Be3 {[%emt 0:01:55]} Ne5 {[%emt 0:06:26]} 16. Rbd1 {[%emt 0:02:00]} Qb8 {[%emt 0:12:58]} 17. b3 {[%emt 0:16:28]} Ne6 {[%emt 0:04:43]} 18. Nd5 {[%emt 0:06:17]} Nd7 {[%emt 0:00:34]} 19. f4 {[%emt 0:01:19]} Nf6 {[%emt 0:06:06]} 20. Nbc3 {[%emt 0:07:05]} Nf8 {[%emt 0:07:42]} 21. Bd4 {[%emt 0:07:10]} N6d7 {[%emt 0:08:31]} 22. Bxg7 {[%emt 0:03:43]} Kxg7 {[%emt 0:00:03]} 23. Qf2 {[%emt 0:00:14]} f6 {[%emt 0:08:34]} 24. e5 {[%emt 0:07:08]} fxe5 {[%emt 0:08:42]} 25. fxe5 {[%emt 0:00:27]} Nxe5 {[%emt 0:01:52]} 26. Qf6+ {[%emt 0:04:25]} Kg8 {[%emt 0:00:05]} 27. Nb5 {[%emt 0:00:54]} Nfd7 {[%emt 0:05:33]} 28. Ne7+ {[%emt 0:01:30]} Rxe7 {[%emt 0:00:03]} 29. Qxe7 {[%emt 0:00:06]} Bxg2 {[%emt 0:02:52]} 30. Kxg2 {[%emt 0:00:31]} b6 {[%emt 0:00:11]} 31. Nxc7 {[%emt 0:01:17]} a4 {[%emt 0:03:07]} 32. Ne6 {[%emt 0:03:35]} Qb7+ {[%emt 0:00:02]} 33. Rd5 {[%emt 0:00:20]} 1-0

[Event "ISR-ch Open 2018"]
[Site "Ma'alot-Tarshih"]
[Date "2018.12.18"]
[Round "7"]
[White "Gruenfeld, Yehuda"]
[Black "Zanan, Evgeny"]
[Result "0-1"]
[ECO "B96"]
[WhiteElo "2421"]
[BlackElo "2521"]
[Annotator "ChessBase"]
[PlyCount "62"]
[EventDate "2018.12.11"]
[EventType "swiss"]
[EventCountry "ISR"]
[SourceTitle "playchess.com"]
[Source "ChessBase"]
[SourceQuality "1"]
[TimeControl "40/5400+30:1800+30"]

1. e4 {[%emt 0:00:00]} c5 {[%emt 0:03:58]} 2. Nf3 {[%emt 0:00:00]} d6 {[%emt 0:00:04]} 3. d4 {[%emt 0:00:00]} cxd4 {[%emt 0:00:08]} 4. Nxd4 {[%emt 0:00:00]} Nf6 {[%emt 0:00:03]} 5. Nc3 {[%emt 0:00:02]} a6 {[%emt 0:00:03]} 6. Bg5 {[%emt 0:00:30]} e6 {[%emt 0:00:04]} 7. f4 {[%emt 0:00:09]} h6 {[%emt 0:00:04]} 8. Bh4 {[%emt 0:00:06]} Qb6 {[%emt 0:00:03]} 9. a3 {[%emt 0:00:53]} Be7 {[%emt 0:00:04]} 10. Bf2 {[%emt 0:00:07]} Qc7 {[%emt 0:00:04]} 11. Qf3 {[%emt 0:03:59]} Nbd7 {[%emt 0:03:29]} 12. O-O-O {[%emt 0:04:12]} b5 {[%emt 0:00:32]} 13. Kb1 {[%emt 0:02:53]} Rb8 {[%emt 0:03:15]} 14. Nb3 {[%emt 0:12:44]} b4 {[%emt 0:01:42]} 15. axb4 {[%emt 0:00:07]} Rxb4 {[%emt 0:00:06]} 16. Rd4 {[%emt 0:00:12]} Rxd4 {[%emt 0:01:09]} 17. Bxd4 {[%emt 0:00:37]} Bb7 {[%emt 0:01:26]} 18. Bd3 {[%emt 0:00:20]} O-O {[%emt 0:17:50]} 19. g4 {[%emt 0:03:00]} e5 {[%emt 0:01:08]} 20. Be3 {[%emt 0:00:34]} d5 {[%emt 0:19:58]} 21. g5 {[%emt 0:13:15]} d4 {[%emt 0:07:05]} 22. gxf6 {[%emt 0:01:26]} Bxf6 {[%emt 0:00:56]} 23. Nd5 {[%emt 0:11:01]} Bxd5 {[%emt 0:00:48]} 24. exd5 {[%emt 0:00:04]} dxe3 {[%emt 0:00:05]} 25. Qe4 {[%emt 0:01:31]} Rb8 {[%emt 0:06:14]} 26. fxe5 {[%emt 0:05:05]} Nxe5 {[%emt 0:03:48]} 27. Bxa6 {[%emt 0:00:05]} Qa7 {[%emt 0:03:12]} 28. Be2 {[%emt 0:00:18]} Ra8 {[%emt 0:01:14]} 29. c3 {[%emt 0:00:06]} Qa2+ {[%emt 0:01:27]} 30. Kc2 {[%emt 0:00:12]} Rb8 {[%emt 0:00:04]} 31. Bc4 {[%emt 0:00:34]} Qa4 {[%emt 0:00:04]} 0-1

[Event "ISR-ch Open 2018"]
[Site "Ma'alot-Tarshih"]
[Date "2018.12.18"]
[Round "7"]
[White "Bronstein, Or"]
[Black "Taichman, Ori"]
[Result "1-0"]
[ECO "E73"]
[WhiteElo "2359"]
[BlackElo "2303"]
[Annotator "NA"]
[PlyCount "119"]
[EventDate "2018.12.11"]
[EventType "swiss"]
[EventCountry "ISR"]
[SourceTitle "playchess.com"]
[Source "ChessBase"]
[SourceQuality "1"]
[TimeControl "40/5400+30:1800+30"]

1. d4 {[%emt 0:00:00]} Nf6 {[%emt 0:00:18]} 2. c4 {[%emt 0:00:00]} g6 {[%emt 0:00:04]} 3. Nc3 {[%emt 0:00:00]} Bg7 {[%emt 0:00:04]} 4. e4 {[%emt 0:00:00]} d6 {[%emt 0:00:03]} 5. Be2 {[%emt 0:00:01]} O-O {[%emt 0:00:45]} 6. Be3 {[%emt 0:00:05] LiveBook: 795 Games} e5 {[%emt 0:00:05]} 7. d5 {[%emt 0:00:04]} c5 {[%emt 0:07:54] E73: King's Indian: Averbakh Variation without 6...c5} (7... a5 8. g4 Na6 9. h4 Nc5 10. f3 h5 11. g5 Nh7 12. Kd2 Bd7 13. Nh3 c6 14. Nf2 cxd5 15. exd5 f5 16. gxf6 Nxf6 17. Bxc5 dxc5 {0-1 (37) Vallejo Pons,F (2705)-Radjabov,T (2741) Palma de Mallorca 2017}) 8. g4 {[%emt 0:00:29]} Ne8 {[%emt 0:01:29]} 9. h4 {[%emt 0:01:50]} f5 {[%emt 0:00:10]} 10. gxf5 {[%emt 0:00:13]} gxf5 {[%emt 0:00:01]} 11. exf5 {[%emt 0:00:12]} Bxf5 {[%emt 0:00:27]} 12. h5 $146 {[%emt 0:01:12]} ({Predecessor:} 12. Nf3 Nd7 13. h5 e4 14. Nh4 Bxc3+ 15. bxc3 {0-1 (36) Hejazipour,M (2307)-Matta,V (2227) Stockholm 2017}) 12... e4 {[%emt 0:09:47]} 13. Qd2 {[%emt 0:13:59]} Nd7 {[%emt 0:04:45]} 14. Nh3 {[%emt 0:01:33]} Ne5 {[%emt 0:26:18]} 15. Ng5 {[%emt 0:01:21]} Nd3+ {[%emt 0:00:56]} 16. Bxd3 {[%emt 0:07:23]} exd3 {[%emt 0:00:02]} 17. O-O-O {[%emt 0:09:22]} Nc7 {[%emt 0:12:08]} 18. Rhg1 {[%emt 0:08:55]} Kh8 {[%emt 0:01:44]} 19. Nge4 {[%emt 0:00:27]} Rf7 $18 {[%emt 0:19:31]} (19... Be5 $16 {was worth a try.}) 20. Bf4 {[%emt 0:04:17]} Bxe4 {[%emt 0:02:56]} 21. Nxe4 {[%emt 0:00:05]} Qh4 {[%emt 0:00:10]} 22. Rxg7 {[%emt 0:11:33]} Rxg7 {[%emt 0:00:01]} 23. h6 {[%emt 0:08:08]} Rg6 {[%emt 0:00:59]} 24. Nxd6 {[%emt 0:05:32]} Rf8 {[%emt 0:00:35]} 25. Be5+ {[%emt 0:00:09]} Kg8 {[%emt 0:00:05]} 26. f4 {[%emt 0:01:38]} b6 {[%emt 0:08:18]} 27. Ne4 {[%emt 0:05:38]} Na6 {[%emt 0:00:23]} 28. d6 {[%emt 0:10:38]} Nb4 {[%emt 0:01:55]} 29. Kb1 {[%emt 0:00:24]} Qh3 {[%emt 0:01:27]} 30. a3 {[%emt 0:05:23]} Nc6 {[%emt 0:00:56]} 31. Bg7 {[%emt 0:00:12]} Rd8 {[%emt 0:00:30]} 32. Qxd3 {[%emt 0:02:11]} Qxd3+ {[%emt 0:00:16]} 33. Rxd3 {[%emt 0:00:01]} Re6 {[%emt 0:00:47]} 34. Nf6+ {[%emt 0:02:15]} Kf7 {[%emt 0:00:01]} 35. Nxh7 {[%emt 0:00:36]} Rexd6 {[%emt 0:00:45]} 36. Ng5+ {[%emt 0:00:22]} Kg6 {[%emt 0:00:39]} 37. Rg3 {[%emt 0:00:49]} Rd1+ {[%emt 0:00:13]} 38. Ka2 {[%emt 0:00:26]} R8d3 {[%emt 0:00:38]} 39. Nf3+ {[%emt 0:01:14]} Kh7 {[%emt 0:00:16]} 40. f5 {[%emt 0:00:28]} Rxf3 {[%emt 0:00:56]} 41. Rxf3 {[%emt 0:30:06]} Rd7 {[%emt 0:03:06]} 42. Re3 {[%emt 0:00:00]} Ne7 {[%emt 0:09:35]} 43. Rf3 {[%emt 0:00:00]} Nc6 {[%emt 0:06:06]} 44. f6 {[%emt 0:00:00]} Ne5 {[%emt 0:00:06]} 45. Rf4 {[%emt 0:00:00]} Kg8 {[%emt 0:02:14]} 46. Rh4 {[%emt 0:00:00]} Kh7 {[%emt 0:00:08]} 47. Re4 {[%emt 0:00:00]} Ng6 {[%emt 0:00:19]} 48. b4 {[%emt 0:00:00]} Rc7 {[%emt 0:02:15]} 49. Kb3 {[%emt 0:00:00]} cxb4 {[%emt 0:02:14]} 50. axb4 {[%emt 0:00:00]} Rd7 {[%emt 0:00:17]} 51. Ka4 {[%emt 0:00:00]} a6 {[%emt 0:00:21]} 52. Re6 {[%emt 0:00:00]} Rb7 {[%emt 0:00:42]} 53. c5 {[%emt 0:00:00]} bxc5 {[%emt 0:00:02]} 54. bxc5 {[%emt 0:00:00]} Rc7 {[%emt 0:00:01]} 55. c6 {[%emt 0:00:00]} Kg8 {[%emt 0:01:27]} 56. f7+ {[%emt 0:00:00]} Kxf7 {[%emt 0:00:17]} 57. Rf6+ {[%emt 0:00:00]} Kg8 {[%emt 0:00:12]} 58. Rxg6 {[%emt 0:00:00]} Kh7 {[%emt 0:00:03]} 59. Be5 {[%emt 0:00:00]} Re7 {[%emt 0:00:37]} 60. Rg7+ {[%emt 0:00:00]} 1-0

[Event "ISR-ch Open 2018"]
[Site "Ma'alot-Tarshih"]
[Date "2018.12.18"]
[Round "7"]
[White "Zhizmer, Yuri"]
[Black "Libman, Guy"]
[Result "1-0"]
[ECO "B18"]
[WhiteElo "2326"]
[BlackElo "2299"]
[Annotator "NA"]
[PlyCount "129"]
[EventDate "2018.12.11"]
[EventType "swiss"]
[EventCountry "ISR"]
[SourceTitle "playchess.com"]
[Source "ChessBase"]
[SourceQuality "1"]
[TimeControl "40/5400+30:1800+30"]

1. d4 {[%emt 0:00:00]} d5 {[%emt 0:00:00]} 2. Nf3 {[%emt 0:00:56]} Nf6 {[%emt 0:00:18]} 3. e3 {[%emt 0:00:46]} Bf5 {[%emt 0:00:45]} 4. Bd3 {[%emt 0:01:27]} Bxd3 {[%emt 0:00:31]} 5. Qxd3 {[%emt 0:01:09]} c6 {[%emt 0:00:14]} 6. Nbd2 {[%emt 0:00:28]} e6 {[%emt 0:00:12]} 7. O-O {[%emt 0:00:18]} Nbd7 {[%emt 0:00:09]} 8. e4 {[%emt 0:00:17]} dxe4 {[%emt 0:00:11]} 9. Nxe4 {[%emt 0:00:03]} Nxe4 {[%emt 0:00:29]} 10. Qxe4 {[%emt 0:00:03]} Be7 {[%emt 0:00:14]} 11. c3 {[%emt 0:00:20]} O-O {[%emt 0:00:16]} 12. Re1 {[%emt 0:00:18]} Nf6 {[%emt 0:01:34] B18: Classical Caro-Kann: 4...Bf5 sidelines} 13. Qc2 {[%emt 0:00:41]} Qc7 {[%emt 0:01:37]} (13... c5) 14. Bg5 {[%emt 0:00:31]} Rfd8 $146 {[%emt 0:02:36]} ({Predecessor:} 14... Rad8 15. Bxf6 Bxf6 16. Rad1 Rd5 17. Rd2 Rfd8 18. Rde2 a6 19. Qe4 {½-½ (33) Kiraly,F (1964)-Szabo,K (1966) Hungary 2009}) 15. Bxf6 {[%emt 0:00:39]} Bxf6 {[%emt 0:00:09]} 16. Rad1 {[%emt 0:00:18]} h6 {[%emt 0:02:33]} 17. h3 {[%emt 0:00:24]} Rd7 {[%emt 0:01:10]} 18. Nh2 {[%emt 0:03:18]} Rd5 {[%emt 0:04:42]} 19. Ng4 {[%emt 0:01:26]} Qe7 {[%emt 0:00:08]} 20. a4 {[%emt 0:00:47]} Rad8 {[%emt 0:03:12]} 21. Qb3 {[%emt 0:01:17]} Bg5 {[%emt 0:06:48]} 22. Ne5 {[%emt 0:01:56]} Bf6 {[%emt 0:04:10]} 23. Nd3 {[%emt 0:01:16]} Qc7 {[%emt 0:02:12]} 24. Ra1 {[%emt 0:06:19]} a5 {[%emt 0:01:23]} 25. Re4 {[%emt 0:02:53]} R5d6 {[%emt 0:05:39]} 26. Rae1 {[%emt 0:01:01]} b6 {[%emt 0:02:42]} 27. Qc4 {[%emt 0:02:37]} g6 {[%emt 0:06:07]} 28. R1e3 {[%emt 0:03:05]} Bg7 {[%emt 0:00:36]} 29. h4 {[%emt 0:04:44]} Rd5 {[%emt 0:02:47]} 30. Nf4 {[%emt 0:01:24]} R5d6 {[%emt 0:06:39]} 31. g3 {[%emt 0:01:55]} c5 {[%emt 0:06:04]} 32. Re2 {[%emt 0:09:06]} Qc6 {[%emt 0:05:39]} 33. dxc5 $1 {[%emt 0:01:33]} Rd1+ {[%emt 0:03:29]} 34. Kh2 {[%emt 0:02:07]} bxc5 {[%emt 0:02:33]} 35. Ng2 {[%emt 0:01:58]} h5 {[%emt 0:03:07]} 36. Ne1 {[%emt 0:04:28]} R1d2 $11 {[%emt 0:05:10]} 37. Nf3 {[%emt 0:11:49]} Rxe2 {[%emt 0:00:52]} 38. Qxe2 {[%emt 0:01:13]} Qd5 {[%emt 0:01:09]} 39. Ne5 {[%emt 0:05:23]} Bxe5 {[%emt 0:02:19]} 40. Rxe5 {[%emt 0:00:15]} Qc6 {[%emt 0:01:06]} 41. Rg5 {[%emt 0:36:13]} Rc8 {[%emt 0:35:47]} 42. Qxh5 {[%emt 0:08:11]} Qxa4 {[%emt 0:01:18]} 43. Qe2 {[%emt 0:00:24]} Kf8 {[%emt 0:02:34]} 44. Rg4 {[%emt 0:04:03]} Qc6 {[%emt 0:00:53]} 45. Rf4 {[%emt 0:00:23]} Rd8 {[%emt 0:05:18]} 46. Qe5 {[%emt 0:01:48]} Kg8 {[%emt 0:01:07]} 47. Qf6 {[%emt 0:01:03]} Rd7 {[%emt 0:00:17]} 48. h5 {[%emt 0:01:15]} gxh5 {[%emt 0:00:05]} 49. Qg5+ {[%emt 0:00:13]} Kf8 {[%emt 0:00:18]} 50. Qxh5 {[%emt 0:01:59]} Ke8 {[%emt 0:00:24]} 51. Qh8+ {[%emt 0:04:14]} Ke7 {[%emt 0:00:03]} 52. Qg7 {[%emt 0:00:45]} Kd6 {[%emt 0:00:15]} 53. Qf8+ {[%emt 0:02:17]} Kc7 {[%emt 0:00:14]} 54. Rxf7 {[%emt 0:00:27]} Rxf7 {[%emt 0:00:16]} 55. Qxf7+ {[%emt 0:00:01]} Kb6 {[%emt 0:00:10]} 56. Qf4 {[%emt 0:00:17]} Qd5 {[%emt 0:00:19]} 57. g4 {[%emt 0:01:02]} e5 {[%emt 0:00:12]} 58. Qf6+ {[%emt 0:01:11]} Kb5 {[%emt 0:00:05]} 59. g5 {[%emt 0:00:37]} Kc4 {[%emt 0:00:41]} 60. g6 {[%emt 0:00:33]} Kd3 {[%emt 0:00:13]} 61. g7 {[%emt 0:01:48]} Kc2 {[%emt 0:00:29]} 62. Qg6+ {[%emt 0:00:09]} Kxb2 {[%emt 0:00:06]} 63. g8=Q {[%emt 0:00:09]} Qxg8 {[%emt 0:00:19]} 64. Qxg8 {[%emt 0:00:05]} a4 {[%emt 0:00:04]} 65. Qb8+ {[%emt 0:00:15]} 1-0

[Event "ISR-ch Open 2018"]
[Site "Ma'alot-Tarshih"]
[Date "2018.12.18"]
[Round "7"]
[White "Mordechai, Hanan"]
[Black "Iliaguev, Nisim"]
[Result "1/2-1/2"]
[ECO "B40"]
[WhiteElo "2310"]
[BlackElo "2338"]
[Annotator "NA"]
[PlyCount "51"]
[EventDate "2018.12.11"]
[EventType "swiss"]
[EventCountry "ISR"]
[SourceTitle "playchess.com"]
[Source "ChessBase"]
[SourceQuality "1"]
[TimeControl "40/5400+30:1800+30"]

1. e4 {[%emt 0:00:00]} c5 {[%emt 0:00:00]} 2. Nf3 {[%emt 0:00:00]} e6 {[%emt 0:00:00]} 3. d4 {[%emt 0:00:00]} cxd4 {[%emt 0:00:00]} 4. Nxd4 {[%emt 0:00:00]} Nf6 {[%emt 0:00:08]} 5. Bd3 {[%emt 0:00:51]} Nc6 {[%emt 0:00:17]} 6. Nxc6 {[%emt 0:00:47]} bxc6 {[%emt 0:00:11]} 7. O-O {[%emt 0:00:38]} d5 {[%emt 0:00:11]} 8. Nd2 {[%emt 0:09:48]} Be7 {[%emt 0:01:09]} 9. Qe2 {[%emt 0:02:53]} O-O {[%emt 0:03:37]} 10. b3 {[%emt 0:01:32]} Bb7 {[%emt 0:04:27] B40: Sicilian: 2...e6, Unusual lines} 11. Bb2 {[%emt 0:04:39] LiveBook: 3 Games} c5 {[%emt 0:01:30]} 12. e5 {[%emt 0:10:38]} Nd7 {[%emt 0:01:16]} 13. f4 {[%emt 0:01:17]} (13. c4 a5 14. cxd5 Bxd5 15. Ne4 Re8 16. Rfd1 Qc7 17. Bb5 Red8 18. Nc3 {1-0 (58) Kovalev,V (2539)-Moiseenko,A (2692) Wroclaw 2014}) 13... g6 $146 {[%emt 0:09:12]} ({Predecessor:} 13... h6 14. Kh1 Rc8 15. f5 exf5 16. Bxf5 Kh8 17. Qg4 Rc7 18. Bxd7 Rxd7 19. e6 {1-0 (19) Kabisch,T (2298)-Schmidt,T (2122) Ditzingen 2015}) 14. c4 {[%emt 0:00:25]} a5 {[%emt 0:03:27]} 15. cxd5 {[%emt 0:00:47]} Bxd5 {[%emt 0:00:49]} 16. Bb5 {[%emt 0:20:15]} Nb6 {[%emt 0:04:42]} 17. a4 {[%emt 0:00:21]} Qc7 {[%emt 0:03:33]} 18. Nc4 {[%emt 0:00:54]} Rfd8 {[%emt 0:21:58]} 19. Bc3 {[%emt 0:00:18]} Nxc4 {[%emt 0:06:15]} 20. bxc4 {[%emt 0:00:02]} Bb7 {[%emt 0:01:12]} 21. Rfd1 {[%emt 0:01:38]} Rxd1+ {[%emt 0:01:44]} 22. Rxd1 {[%emt 0:04:21]} Rd8 {[%emt 0:00:30]} 23. Rd2 {[%emt 0:06:39]} Ba8 {[%emt 0:01:52]} 24. Qd1 {[%emt 0:01:45]} Kg7 $11 {[%emt 0:01:27]} 25. Rxd8 {[%emt 0:02:55]} Bxd8 {[%emt 0:00:32]} 26. Qd7 {[%emt 0:00:49]} 1/2-1/2